[Event "*** Titled Tuesday Blitz"]
[Site "Chess.com"]
[Date "2021.03.02"]
[Round "11"]
[White "AlexeiShirov"]
[Black "BogdanDeac"]
[Result "1-0"]
[WhiteElo "2839"]
[BlackElo "2963"]
[TimeControl "180+1"]
[EndTime "12:10:21 PST"]
[Termination "AlexeiShirov won on time"]

1. e4 {[%clk 0:03:00.9]} 1... e5 {[%clk 0:03:00]} 2. Nf3 {[%clk 0:02:59.9]} 2...
Nc6 {[%clk 0:03:00.6]} 3. Bb5 {[%clk 0:02:59.8]} 3... Nf6 {[%clk 0:03:00.8]} 4.
d3 {[%clk 0:02:58.6]} 4... d6 {[%clk 0:02:58.9]} 5. O-O {[%clk 0:02:53.1]} 5...
Be7 {[%clk 0:02:58.4]} 6. Re1 {[%clk 0:02:46.4]} 6... O-O {[%clk 0:02:58]} 7.
Nbd2 {[%clk 0:02:46]} 7... a6 {[%clk 0:02:54.8]} 8. Bxc6 {[%clk 0:02:44.1]} 8...
bxc6 {[%clk 0:02:55]} 9. Nf1 {[%clk 0:02:41.4]} 9... Re8 {[%clk 0:02:49.5]} 10.
Ng3 {[%clk 0:02:38.3]} 10... c5 {[%clk 0:02:49.3]} 11. c3 {[%clk 0:02:37.4]}
11... a5 {[%clk 0:02:47.7]} 12. d4 {[%clk 0:02:34.3]} 12... cxd4 {[%clk
0:02:43.4]} 13. cxd4 {[%clk 0:02:33.4]} 13... exd4 {[%clk 0:02:30.5]} 14. Nxd4
{[%clk 0:02:32.4]} 14... Bf8 {[%clk 0:02:30.8]} 15. Bg5 {[%clk 0:02:28.8]} 15...
h6 {[%clk 0:02:27]} 16. Nc6 {[%clk 0:02:23.3]} 16... Qd7 {[%clk 0:02:26.4]} 17.
Bxf6 {[%clk 0:02:22.9]} 17... Qxc6 {[%clk 0:02:26.7]} 18. Bc3 {[%clk 0:02:22.7]}
18... a4 {[%clk 0:02:18.9]} 19. Rc1 {[%clk 0:02:20.6]} 19... Qb5 {[%clk
0:02:16.7]} 20. Qf3 {[%clk 0:02:05.3]} 20... Qg5 {[%clk 0:02:01.4]} 21. Nf5
{[%clk 0:01:56]} 21... d5 {[%clk 0:01:44.3]} 22. h4 {[%clk 0:01:46.2]} 22... Qg6
{[%clk 0:01:37.3]} 23. h5 {[%clk 0:01:41]} 23... Qg5 {[%clk 0:01:35.5]} 24. Ng3
{[%clk 0:01:34.7]} 24... Bg4 {[%clk 0:01:18.7]} 25. Qe3 {[%clk 0:01:33.4]} 25...
Qxe3 {[%clk 0:00:43.9]} 26. Rxe3 {[%clk 0:01:32.5]} 26... dxe4 {[%clk 0:00:28]}
27. Nxe4 {[%clk 0:01:22.6]} 27... Bxh5 {[%clk 0:00:19.9]} 28. Rce1 {[%clk
0:01:21.7]} 28... Re6 {[%clk 0:00:18.3]} 29. Bd4 {[%clk 0:01:08.1]} 29... Bg6
{[%clk 0:00:17.6]} 30. Nc3 {[%clk 0:01:03.1]} 30... Rea6 {[%clk 0:00:13]} 31.
Re5 {[%clk 0:01:01.2]} 31... Rb8 {[%clk 0:00:11.6]} 32. Rb5 {[%clk 0:01:00.2]}
32... Raa8 {[%clk 0:00:09.1]} 33. Rxb8 {[%clk 0:00:57.8]} 33... Rxb8 {[%clk
0:00:09.4]} 34. Nxa4 {[%clk 0:00:57.5]} 34... Rb4 {[%clk 0:00:09.4]} 35. Bc5
{[%clk 0:00:57.4]} 35... Bxc5 {[%clk 0:00:06.8]} 36. Nxc5 {[%clk 0:00:56]} 36...
Rxb2 {[%clk 0:00:07.4]} 37. Ra1 {[%clk 0:00:53.8]} 37... Rb5 {[%clk 0:00:07.2]}
38. Nb3 {[%clk 0:00:52.5]} 38... c5 {[%clk 0:00:06.8]} 39. Rc1 {[%clk
0:00:51.8]} 39... Rb4 {[%clk 0:00:07.1]} 40. Nxc5 {[%clk 0:00:50.7]} 40... Rb5
{[%clk 0:00:04.6]} 41. a4 {[%clk 0:00:49.5]} 41... Ra5 {[%clk 0:00:05]} 42. Rc4
{[%clk 0:00:49.2]} 42... f6 {[%clk 0:00:05.4]} 43. Nb3 {[%clk 0:00:47.2]} 43...
Ra8 {[%clk 0:00:05.6]} 44. Rb4 {[%clk 0:00:45.7]} 44... Be8 {[%clk 0:00:05.8]}
45. Nc5 {[%clk 0:00:44.8]} 45... Ra5 {[%clk 0:00:05.5]} 46. Rb8 {[%clk
0:00:44.3]} 46... Kf7 {[%clk 0:00:05]} 47. Nb7 {[%clk 0:00:43.7]} 47... Ra6
{[%clk 0:00:05.3]} 48. a5 {[%clk 0:00:42]} 48... Bc6 {[%clk 0:00:05.3]} 49. Nd8+
{[%clk 0:00:40.9]} 49... Ke7 {[%clk 0:00:04.5]} 50. Nxc6+ {[%clk 0:00:38.7]}
50... Rxc6 {[%clk 0:00:05.4]} 51. Rb7+ {[%clk 0:00:38.7]} 51... Kf8 {[%clk
0:00:05.3]} 52. Rb6 {[%clk 0:00:36]} 52... Rc1+ {[%clk 0:00:05.3]} 53. Kh2
{[%clk 0:00:34.6]} 53... Ra1 {[%clk 0:00:06]} 54. a6 {[%clk 0:00:33.5]} 54... f5
{[%clk 0:00:06.5]} 55. f4 {[%clk 0:00:32]} 55... Ra3 {[%clk 0:00:05.4]} 56. Kg1
{[%clk 0:00:30.7]} 56... Kf7 {[%clk 0:00:05]} 57. Kf2 {[%clk 0:00:28.9]} 57...
g5 {[%clk 0:00:04.6]} 58. Rxh6 {[%clk 0:00:27.4]} 58... gxf4 {[%clk 0:00:04.7]}
59. Rb6 {[%clk 0:00:26.5]} 59... Ke7 {[%clk 0:00:04.3]} 60. Ke2 {[%clk
0:00:24.5]} 60... Kd7 {[%clk 0:00:04.2]} 61. Rf6 {[%clk 0:00:22.6]} 61... Kc7
{[%clk 0:00:02]} 62. a7 {[%clk 0:00:20.5]} 62... Kb7 {[%clk 0:00:01.9]} 63. Rf7+
{[%clk 0:00:18.8]} 63... Ka8 {[%clk 0:00:02.1]} 64. Kf2 {[%clk 0:00:18.6]} 1-0

[Event "*** Titled Tuesday Blitz"]
[Site "Chess.com"]
[Date "2021.03.02"]
[Round "11"]
[White "Mazanchenko_Dmitry"]
[Black "Kale36"]
[Result "1/2-1/2"]
[WhiteElo "2122"]
[BlackElo "2288"]
[TimeControl "180+1"]
[EndTime "12:10:33 PST"]
[Termination "Game drawn by repetition"]

1. e4 {[%clk 0:02:58.7]} 1... g6 {[%clk 0:02:58.9]} 2. d4 {[%clk 0:02:58]} 2...
Bg7 {[%clk 0:02:59]} 3. Nc3 {[%clk 0:02:58.9]} 3... d6 {[%clk 0:02:58.3]} 4. Be3
{[%clk 0:02:55.2]} 4... a6 {[%clk 0:02:58]} 5. a4 {[%clk 0:02:53.3]} 5... b6
{[%clk 0:02:56.9]} 6. Qd2 {[%clk 0:02:51.5]} 6... Bb7 {[%clk 0:02:56.8]} 7. f3
{[%clk 0:02:49.9]} 7... Nd7 {[%clk 0:02:56.6]} 8. h4 {[%clk 0:02:48.7]} 8... h5
{[%clk 0:02:53.7]} 9. Nh3 {[%clk 0:02:48.6]} 9... c5 {[%clk 0:02:52.7]} 10. Ng5
{[%clk 0:02:43.4]} 10... e6 {[%clk 0:02:30.7]} 11. Bc4 {[%clk 0:02:36.7]} 11...
cxd4 {[%clk 0:02:17.2]} 12. Bxd4 {[%clk 0:02:34.6]} 12... Ne5 {[%clk 0:02:17.2]}
13. Bxe6 {[%clk 0:02:28.5]} 13... fxe6 {[%clk 0:02:14.5]} 14. Nxe6 {[%clk
0:02:29.4]} 14... Qe7 {[%clk 0:02:14.7]} 15. Nxg7+ {[%clk 0:02:26.3]} 15... Qxg7
{[%clk 0:02:14.3]} 16. f4 {[%clk 0:02:24.4]} 16... O-O-O {[%clk 0:01:58.7]} 17.
Nd5 {[%clk 0:02:15.7]} 17... Bxd5 {[%clk 0:01:55.8]} 18. exd5 {[%clk 0:02:15.7]}
18... Qh6 {[%clk 0:01:39.7]} 19. O-O-O {[%clk 0:02:02.6]} 19... Nc4 {[%clk
0:01:33.2]} 20. Qc3 {[%clk 0:02:00.4]} 20... b5 {[%clk 0:01:32.8]} 21. Bxh8
{[%clk 0:01:55.9]} 21... Qxf4+ {[%clk 0:01:32.8]} 22. Kb1 {[%clk 0:01:55.6]}
22... Nh6 {[%clk 0:01:25]} 23. axb5 {[%clk 0:01:54.4]} 23... axb5 {[%clk
0:01:24.5]} 24. b3 {[%clk 0:01:48.3]} 24... Nf7 {[%clk 0:01:03.5]} 25. bxc4
{[%clk 0:01:44.7]} 25... Rxh8 {[%clk 0:01:00.2]} 26. Rhf1 {[%clk 0:01:42.5]}
26... Qe5 {[%clk 0:00:57.5]} 27. Qxe5 {[%clk 0:01:37.4]} 27... Nxe5 {[%clk
0:00:57.6]} 28. cxb5 {[%clk 0:01:38.3]} 28... Nc4 {[%clk 0:00:57.1]} 29. Rd4
{[%clk 0:01:36.1]} 29... Na3+ {[%clk 0:00:50.3]} 30. Kb2 {[%clk 0:01:35.6]}
30... Nxb5 {[%clk 0:00:50.4]} 31. Rb4 {[%clk 0:01:36.1]} 31... Nc7 {[%clk
0:00:48]} 32. Rf7 {[%clk 0:01:34]} 32... Nxd5 {[%clk 0:00:46.5]} 33. Rd4 {[%clk
0:01:26.5]} 33... Nb6 {[%clk 0:00:41.8]} 34. Rb4 {[%clk 0:01:13.2]} 34... Nd7
{[%clk 0:00:39]} 35. Rd4 {[%clk 0:00:59.4]} 35... Nb6 {[%clk 0:00:32.9]} 36. Kb3
{[%clk 0:00:55.2]} 36... Rd8 {[%clk 0:00:31.8]} 37. Rb4 {[%clk 0:00:46.2]} 37...
Nd7 {[%clk 0:00:28.9]} 38. Ra4 {[%clk 0:00:43.9]} 38... Nc5+ {[%clk 0:00:28.7]}
39. Kb4 {[%clk 0:00:42.6]} 39... Nxa4 {[%clk 0:00:29.6]} 40. Kxa4 {[%clk
0:00:43.1]} 40... Re8 {[%clk 0:00:29.1]} 41. Rf6 {[%clk 0:00:38.7]} 41... Kc7
{[%clk 0:00:29.6]} 42. Rxg6 {[%clk 0:00:38.5]} 42... Re4+ {[%clk 0:00:29.9]} 43.
Kb5 {[%clk 0:00:35.3]} 43... Rxh4 {[%clk 0:00:30.8]} 44. c4 {[%clk 0:00:35]}
44... Rg4 {[%clk 0:00:27.8]} 45. Rxg4 {[%clk 0:00:31.4]} 45... hxg4 {[%clk
0:00:28.7]} 46. c5 {[%clk 0:00:30.5]} 46... dxc5 {[%clk 0:00:20.2]} 47. Kxc5
{[%clk 0:00:31.4]} 47... Kd7 {[%clk 0:00:19.8]} 48. Kd5 {[%clk 0:00:31.7]} 48...
Ke7 {[%clk 0:00:20.2]} 49. Ke5 {[%clk 0:00:32.1]} 49... Kf7 {[%clk 0:00:20.2]}
50. Kf5 {[%clk 0:00:17.8]} 50... g3 {[%clk 0:00:20.4]} 51. Kf4 {[%clk
0:00:18.1]} 51... Kf6 {[%clk 0:00:19.9]} 52. Kxg3 {[%clk 0:00:18.2]} 52... Kg5
{[%clk 0:00:20.4]} 53. Kf3 {[%clk 0:00:17.9]} 53... Kf5 {[%clk 0:00:19.4]} 54.
g3 {[%clk 0:00:13.7]} 54... Kg5 {[%clk 0:00:19.3]} 55. g4 {[%clk 0:00:14.1]}
55... Kf6 {[%clk 0:00:17.1]} 56. Kf4 {[%clk 0:00:15]} 56... Kg6 {[%clk
0:00:17.4]} 57. Kg3 {[%clk 0:00:14.6]} 57... Kg5 {[%clk 0:00:17.6]} 58. Kh3
{[%clk 0:00:15.5]} 58... Kh6 {[%clk 0:00:16.9]} 59. Kh4 {[%clk 0:00:16.4]} 59...
Kg6 {[%clk 0:00:17]} 60. g5 {[%clk 0:00:16.8]} 60... Kg7 {[%clk 0:00:17]} 61.
Kh5 {[%clk 0:00:17.5]} 61... Kh7 {[%clk 0:00:17.4]} 62. g6+ {[%clk 0:00:18.4]}
62... Kg7 {[%clk 0:00:17.6]} 63. Kg5 {[%clk 0:00:19.3]} 63... Kg8 {[%clk
0:00:17.4]} 64. Kf6 {[%clk 0:00:20.2]} 64... Kf8 {[%clk 0:00:17.6]} 65. Kf5
{[%clk 0:00:20.8]} 65... Kg8 {[%clk 0:00:15.6]} 66. Kg4 {[%clk 0:00:19.2]} 66...
Kg7 {[%clk 0:00:14]} 67. Kg5 {[%clk 0:00:20.1]} 67... Kg8 {[%clk 0:00:14.1]} 68.
Kh5 {[%clk 0:00:17.6]} 68... Kg7 {[%clk 0:00:13.2]} 69. Kg5 {[%clk 0:00:17.9]}
1/2-1/2

[Event "*** Titled Tuesday Blitz"]
[Site "Chess.com"]
[Date "2021.03.02"]
[Round "11"]
[White "AttilaTurzo"]
[Black "Kobalia"]
[Result "1/2-1/2"]
[WhiteElo "2579"]
[BlackElo "2716"]
[TimeControl "180+1"]
[EndTime "12:10:37 PST"]
[Termination "Game drawn - insufficient material"]

1. d4 {[%clk 0:03:00.9]} 1... Nf6 {[%clk 0:02:59]} 2. Nf3 {[%clk 0:03:00.7]}
2... g6 {[%clk 0:02:59.3]} 3. Bg5 {[%clk 0:03:00.5]} 3... Bg7 {[%clk 0:02:59.3]}
4. c3 {[%clk 0:03:01.1]} 4... O-O {[%clk 0:02:59.3]} 5. Nbd2 {[%clk 0:03:01.7]}
5... d6 {[%clk 0:02:59.4]} 6. e4 {[%clk 0:03:02.1]} 6... b6 {[%clk 0:02:59.3]}
7. Bd3 {[%clk 0:03:01.8]} 7... Bb7 {[%clk 0:02:59.1]} 8. Qe2 {[%clk 0:03:02.3]}
8... c5 {[%clk 0:02:49.4]} 9. O-O {[%clk 0:03:00.5]} 9... cxd4 {[%clk
0:02:48.2]} 10. cxd4 {[%clk 0:03:01.4]} 10... Nc6 {[%clk 0:02:47.9]} 11. Rac1
{[%clk 0:03:00.4]} 11... Rc8 {[%clk 0:02:46.9]} 12. a3 {[%clk 0:02:59.3]} 12...
h6 {[%clk 0:02:42]} 13. Bh4 {[%clk 0:02:39.6]} 13... Nh5 {[%clk 0:02:41.3]} 14.
d5 {[%clk 0:02:36]} 14... Nf4 {[%clk 0:02:22.1]} 15. Qe3 {[%clk 0:02:33.7]}
15... Nxd3 {[%clk 0:02:22.1]} 16. Qxd3 {[%clk 0:02:33.2]} 16... Ne5 {[%clk
0:02:22]} 17. Nxe5 {[%clk 0:02:31]} 17... Bxe5 {[%clk 0:02:22.1]} 18. b4 {[%clk
0:02:22.6]} 18... Qd7 {[%clk 0:02:14.1]} 19. f4 {[%clk 0:02:18.1]} 19... Rxc1
{[%clk 0:02:09.6]} 20. Rxc1 {[%clk 0:02:16]} 20... Bxf4 {[%clk 0:02:09.8]} 21.
Rf1 {[%clk 0:02:09.6]} 21... Be5 {[%clk 0:02:05.9]} 22. Nf3 {[%clk 0:02:05.7]}
22... Bg7 {[%clk 0:02:04.5]} 23. Bf2 {[%clk 0:02:02.6]} 23... Qa4 {[%clk
0:02:01.2]} 24. Nd4 {[%clk 0:01:42.5]} 24... Ba6 {[%clk 0:01:56.3]} 25. b5
{[%clk 0:01:42.6]} 25... Bxd4 {[%clk 0:01:56.2]} 26. Qxd4 {[%clk 0:01:39.6]}
26... Qxd4 {[%clk 0:01:51.8]} 27. Bxd4 {[%clk 0:01:40.5]} 27... Bxb5 {[%clk
0:01:52.2]} 28. Rc1 {[%clk 0:01:37.5]} 28... f5 {[%clk 0:01:37.6]} 29. e5 {[%clk
0:01:34.2]} 29... dxe5 {[%clk 0:01:35.1]} 30. Bxe5 {[%clk 0:01:34.4]} 30... Rd8
{[%clk 0:01:35.5]} 31. Rc7 {[%clk 0:01:32.8]} 31... Rxd5 {[%clk 0:01:35.1]} 32.
Rxe7 {[%clk 0:01:30.4]} 32... Kf8 {[%clk 0:01:32.3]} 33. Re6 {[%clk 0:01:27.9]}
33... Kf7 {[%clk 0:01:26]} 34. Rf6+ {[%clk 0:01:27.6]} 34... Ke7 {[%clk
0:01:25.9]} 35. Bc3 {[%clk 0:01:20.8]} 35... Rd3 {[%clk 0:01:25.4]} 36. Be5
{[%clk 0:01:18.7]} 36... Re3 {[%clk 0:01:04.5]} 37. Bd4 {[%clk 0:01:14]} 37...
Re4 {[%clk 0:01:03.6]} 38. Bc3 {[%clk 0:01:13.9]} 38... Re3 {[%clk 0:00:51.1]}
39. Bd4 {[%clk 0:01:08.1]} 39... Re6 {[%clk 0:00:45.1]} 40. Rxe6+ {[%clk
0:01:02.5]} 40... Kxe6 {[%clk 0:00:46]} 41. Bg7 {[%clk 0:01:01.1]} 41... h5
{[%clk 0:00:45.6]} 42. h4 {[%clk 0:01:00.8]} 42... f4 {[%clk 0:00:26.5]} 43. Kf2
{[%clk 0:00:58.4]} 43... Bc6 {[%clk 0:00:26.2]} 44. Bh6 {[%clk 0:00:55]} 44...
Ke5 {[%clk 0:00:24.8]} 45. Bg5 {[%clk 0:00:54.5]} 45... Ke4 {[%clk 0:00:20.1]}
46. Bd8 {[%clk 0:00:50.8]} 46... Bd7 {[%clk 0:00:18.8]} 47. Bc7 {[%clk
0:00:49.5]} 47... Bg4 {[%clk 0:00:17.5]} 48. Bb8 {[%clk 0:00:45]} 48... a6
{[%clk 0:00:16.7]} 49. Bc7 {[%clk 0:00:43.9]} 49... b5 {[%clk 0:00:16.9]} 50.
Bb6 {[%clk 0:00:40.8]} 50... f3 {[%clk 0:00:16.2]} 51. gxf3+ {[%clk 0:00:38.3]}
51... Bxf3 {[%clk 0:00:16.7]} 52. Ke1 {[%clk 0:00:34.9]} 52... Bg4 {[%clk
0:00:14.8]} 53. Kd2 {[%clk 0:00:33.9]} 53... g5 {[%clk 0:00:14.8]} 54. hxg5
{[%clk 0:00:33.3]} 54... Bf5 {[%clk 0:00:14.8]} 55. Bf2 {[%clk 0:00:31.9]} 55...
Kf3 {[%clk 0:00:14.6]} 56. Ke1 {[%clk 0:00:28.4]} 56... Kg4 {[%clk 0:00:13.5]}
57. Be3 {[%clk 0:00:25.4]} 57... h4 {[%clk 0:00:10.3]} 58. Kf2 {[%clk
0:00:25.3]} 58... h3 {[%clk 0:00:10.2]} 59. Bd2 {[%clk 0:00:22.9]} 59... Be4
{[%clk 0:00:09.6]} 60. Kg1 {[%clk 0:00:21.5]} 60... Kg3 {[%clk 0:00:08.8]} 61.
Be1+ {[%clk 0:00:21.5]} 61... Kf3 {[%clk 0:00:08.7]} 62. Kh2 {[%clk 0:00:20.6]}
62... Bf5 {[%clk 0:00:07.5]} 63. g6 {[%clk 0:00:19.6]} 63... Bxg6 {[%clk
0:00:07.2]} 64. Kxh3 {[%clk 0:00:20.5]} 64... Ke2 {[%clk 0:00:07.5]} 65. Bb4
{[%clk 0:00:19.8]} 65... Kd3 {[%clk 0:00:07.6]} 66. Kg3 {[%clk 0:00:19.8]} 66...
Kc4 {[%clk 0:00:08]} 67. Kf2 {[%clk 0:00:19.1]} 67... Kb3 {[%clk 0:00:08.9]} 68.
Ke3 {[%clk 0:00:18.9]} 68... Ka4 {[%clk 0:00:09.8]} 69. Kd2 {[%clk 0:00:18.4]}
69... a5 {[%clk 0:00:10.7]} 70. Bc5 {[%clk 0:00:18.7]} 70... b4 {[%clk
0:00:10.2]} 71. axb4 {[%clk 0:00:18.7]} 71... axb4 {[%clk 0:00:10.8]} 72. Bxb4
{[%clk 0:00:19.1]} 1/2-1/2

[Event "*** Titled Tuesday Blitz"]
[Site "Chess.com"]
[Date "2021.03.02"]
[Round "11"]
[White "Szparu"]
[Black "Balla_Tamas"]
[Result "1-0"]
[WhiteElo "2660"]
[BlackElo "2526"]
[TimeControl "180+1"]
[EndTime "12:10:38 PST"]
[Termination "Szparu won by resignation"]

1. d4 {[%clk 0:03:00.9]} 1... f5 {[%clk 0:02:58.4]} 2. g4 {[%clk 0:02:55.9]}
2... d5 {[%clk 0:02:54.7]} 3. g5 {[%clk 0:02:52.2]} 3... c5 {[%clk 0:02:53.5]}
4. c3 {[%clk 0:02:45.3]} 4... Nc6 {[%clk 0:02:52.9]} 5. Nf3 {[%clk 0:02:43.9]}
5... e6 {[%clk 0:02:46.4]} 6. h4 {[%clk 0:02:41.9]} 6... g6 {[%clk 0:02:45.6]}
7. h5 {[%clk 0:02:41.7]} 7... Nge7 {[%clk 0:02:45.3]} 8. Bf4 {[%clk 0:02:39.2]}
8... gxh5 {[%clk 0:02:38.6]} 9. Rxh5 {[%clk 0:02:37.8]} 9... Ng6 {[%clk
0:02:38.7]} 10. Bg3 {[%clk 0:02:30]} 10... cxd4 {[%clk 0:02:37.7]} 11. cxd4
{[%clk 0:02:29.6]} 11... Qa5+ {[%clk 0:02:37.3]} 12. Nc3 {[%clk 0:02:29.2]}
12... Bd7 {[%clk 0:02:32.3]} 13. a3 {[%clk 0:02:26.5]} 13... Bg7 {[%clk
0:02:27.4]} 14. e3 {[%clk 0:02:17.6]} 14... O-O {[%clk 0:02:17.7]} 15. Bd3
{[%clk 0:02:10.8]} 15... Rf7 {[%clk 0:02:17.2]} 16. b4 {[%clk 0:02:07.6]} 16...
Qd8 {[%clk 0:02:14.2]} 17. Nb5 {[%clk 0:02:05.5]} 17... Be8 {[%clk 0:02:06.8]}
18. Nd6 {[%clk 0:01:40]} 18... Rd7 {[%clk 0:02:05.1]} 19. Nxe8 {[%clk
0:01:39.3]} 19... Qxe8 {[%clk 0:02:06]} 20. b5 {[%clk 0:01:31.5]} 20... Nd8
{[%clk 0:01:57.2]} 21. Kd2 {[%clk 0:01:28]} 21... Nf7 {[%clk 0:01:38.9]} 22. Qh1
{[%clk 0:01:26.5]} 22... Nf8 {[%clk 0:01:39]} 23. Qh2 {[%clk 0:01:21.8]} 23...
Qd8 {[%clk 0:01:22.4]} 24. Rh1 {[%clk 0:01:19.2]} 24... Qa5+ {[%clk 0:01:22.1]}
25. Ke2 {[%clk 0:01:19.4]} 25... Qxa3 {[%clk 0:01:15.6]} 26. Rxh7 {[%clk
0:01:09.2]} 26... Nxh7 {[%clk 0:01:10]} 27. Qxh7+ {[%clk 0:01:09]} 27... Kf8
{[%clk 0:01:10.2]} 28. g6 {[%clk 0:01:08.6]} 28... Nd6 {[%clk 0:01:01.8]} 29.
Ne5 {[%clk 0:00:53.5]} 29... Qb2+ {[%clk 0:00:55.2]} 30. Kf3 {[%clk 0:00:53.2]}
30... Rad8 {[%clk 0:00:51.5]} 31. Nxd7+ {[%clk 0:00:34.7]} 31... Rxd7 {[%clk
0:00:51]} 32. Be5 {[%clk 0:00:35.1]} 32... Ne8 {[%clk 0:00:49.2]} 33. Bxg7+
{[%clk 0:00:20.6]} 33... Rxg7 {[%clk 0:00:48.8]} 34. Qh8+ {[%clk 0:00:20.5]}
34... Ke7 {[%clk 0:00:49.1]} 35. Rh7 {[%clk 0:00:20.3]} 35... Rxh7 {[%clk
0:00:39]} 36. gxh7 {[%clk 0:00:20.1]} 36... Qb3 {[%clk 0:00:33.8]} 37. Qxe8+
{[%clk 0:00:17.9]} 37... Kxe8 {[%clk 0:00:33.4]} 38. h8=Q+ {[%clk 0:00:18.7]}
38... Ke7 {[%clk 0:00:34.1]} 39. Qg7+ {[%clk 0:00:18.4]} 39... Kd6 {[%clk
0:00:31.5]} 40. Qf8+ {[%clk 0:00:15.8]} 40... Kd7 {[%clk 0:00:31.3]} 41. Qf7+
{[%clk 0:00:15.6]} 41... Kd6 {[%clk 0:00:31.6]} 42. Be2 {[%clk 0:00:13.6]} 42...
Qc2 {[%clk 0:00:29.7]} 43. Qf8+ {[%clk 0:00:13.5]} 43... Kd7 {[%clk 0:00:29.4]}
44. Qg7+ {[%clk 0:00:14]} 44... Kd6 {[%clk 0:00:29.2]} 45. Qe5+ {[%clk
0:00:14.7]} 45... Kd7 {[%clk 0:00:29.1]} 46. Qb8 {[%clk 0:00:10.8]} 46... Qe4+
{[%clk 0:00:23.1]} 47. Kg3 {[%clk 0:00:11]} 47... Qh1 {[%clk 0:00:22.3]} 48.
Qxb7+ {[%clk 0:00:10.7]} 48... Kd8 {[%clk 0:00:22.7]} 49. Qb8+ {[%clk
0:00:10.3]} 49... Kd7 {[%clk 0:00:22.6]} 50. Qxa7+ {[%clk 0:00:10.6]} 50... Kd8
{[%clk 0:00:23.4]} 51. Qb8+ {[%clk 0:00:09.5]} 51... Ke7 {[%clk 0:00:23.6]} 52.
Qc7+ {[%clk 0:00:09.2]} 52... Kf6 {[%clk 0:00:23.6]} 53. Qe5+ {[%clk 0:00:09.1]}
53... Ke7 {[%clk 0:00:23.9]} 54. Qg7+ {[%clk 0:00:08.9]} 54... Kd6 {[%clk
0:00:23.6]} 55. Bf3 {[%clk 0:00:06.5]} 55... Qg1+ {[%clk 0:00:20]} 56. Bg2
{[%clk 0:00:06.9]} 56... Qb1 {[%clk 0:00:19.5]} 57. Qe5+ {[%clk 0:00:07]} 57...
Ke7 {[%clk 0:00:19.1]} 58. Qc7+ {[%clk 0:00:06.8]} 58... Kf6 {[%clk 0:00:19]}
59. b6 {[%clk 0:00:06.3]} 59... Qd1 {[%clk 0:00:18.6]} 60. Qe5+ {[%clk
0:00:04.9]} 60... Kf7 {[%clk 0:00:18.1]} 61. Qf4 {[%clk 0:00:03.4]} 61... Qb3
{[%clk 0:00:17.1]} 62. Qc7+ {[%clk 0:00:03.1]} 62... Kf6 {[%clk 0:00:16.8]} 63.
b7 {[%clk 0:00:03.3]} 63... f4+ {[%clk 0:00:16.1]} 64. Qxf4+ {[%clk 0:00:02.9]}
64... Ke7 {[%clk 0:00:16.7]} 65. Qc7+ {[%clk 0:00:03.1]} 65... Kf6 {[%clk
0:00:16.6]} 66. b8=Q {[%clk 0:00:04]} 1-0